bitfinex-derivatives/quotes_BNBF0:USTF0_20250907
["timestamp","ask_amount","ask_price","bid_price","bid_amount"]
[1757283384403,1.5377656,878.15,876.82,2.56990105]
[1757283385408,1.5377656,878.14,876.82,2.56990105]
[1757283387108,1.5377656,878.13,876.82,2.56990105]
[1757283387306,1.5377656,878.14,876.82,2.56990105]
[1757283387610,1.5377656,878.12,876.82,2.56990105]
[1757283388409,1.5377656,878.1,876.82,2.56990105]
[1757283388907,1.5377656,878.1,876.82,3.34179988]
[1757283392710,1.5377656,878.17,876.82,3.34179988]
[1757283394112,1.5377656,878.16,876.82,3.34179988]
[1757283395512,1.5377656,878.17,876.81,3.34179988]
[1757283395714,1.5377656,878.17,876.8,3.14317598]
[1757283396116,1.5377656,878.21,876.8,3.14317598]
[1757283396411,1.5377656,878.19,876.78,2.31400568]
[1757283397416,1.5377656,878.2,876.78,2.31400568]
[1757283397613,1.5377656,878.19,876.78,2.31400568]
[1757283398613,0.19862447,877.84,876.78,2.31400568]
[1757283399114,0.19862447,877.84,876.75,2.31400568]
[1757283399621,0.19862447,877.84,876.72,2.31400568]
[1757283401419,0.19862447,877.84,876.71,2.31400568]
[1757283422445,1.5377656,878.09,876.66,2.11536137]
[1757283422642,1.5377656,878.08,876.66,2.11536137]
[1757283423142,1.5377656,878.08,876.66,1.54210685]
[1757283423345,1.5377656,878.08,876.65,1.54210685]
[1757283423641,1.5377656,878.06,876.65,1.54210685]
[1757283424044,1.5377656,878.35,876.56,1.54210685]
[1757283424246,1.5377656,878.35,876.57,0.73081748]
[1757283424442,1.5377656,878.35,876.58,0.73081748]
[1757283424647,1.5377656,878.35,876.59,0.73081748]
[1757283424847,1.5377656,878.35,876.6,0.73081748]
[1757283425044,1.5377656,878.35,876.61,0.73081748]
[1757283425243,1.5377656,878.35,876.62,0.73081748]
[1757283425447,0.19863524,877.92,876.63,0.73081748]
[1757283425646,0.19863524,877.92,876.56,1.54210685]
[1757283425647,0.19863524,877.92,876.65,1.02762452]
[1757283428851,0.19863524,877.92,876.6,1.02762452]
[1757283433852,0.19863524,877.92,876.6,2.56973137]
[1757283435356,0.19863524,877.92,876.61,3.30067488]
[1757283435656,0.19863524,877.92,876.61,2.56973137]
[1757283438960,0.19863524,877.92,876.61,1.02762452]
[1757283445762,1.5377656,878.46,876.61,1.02762452]
[1757283448666,1.5377656,878.14,876.61,2.56973137]
[1757283449064,0.19864714,877.76,876.61,2.56973137]
[1757283480589,0.19864714,877.76,876.71,1.02762452]
[1757283482493,0.19864714,877.76,876.71,1.79927056]
[1757283487699,0.19864714,877.76,876.72,0.7331889]
[1757283487898,0.19864714,877.76,876.72,1.79927056]
[1757283497001,0.19864714,877.76,876.72,3.34137741]
[1757283497306,0.19864714,877.76,876.72,3.34069592]
[1757283497505,0.19864714,877.76,876.72,1.79858907]
[1757283499503,0.19864714,877.76,876.72,3.34069592]
[1757283510212,0.19864714,877.76,876.83,1.79858907]
[1757283510609,0.19864714,877.76,876.9,1.79858907]
[1757283512214,0.19864714,877.76,876.9,3.34069592]
[1757283520820,0.19864714,877.76,876.88,3.34069592]
[1757283530733,0.19864714,877.76,876.9,3.34069592]
[1757283534239,0.19864714,877.76,876.91,0.73136744]
[1757283534439,0.19864714,877.76,876.91,3.34069592]
[1757283551353,0.19864714,877.76,876.92,2.53077137]
[1757283551553,0.19864714,877.76,877.01,1.79858907]
[1757283554852,0.19864714,877.76,877.02,2.5304799]
[1757283555056,0.19864714,877.76,877.02,1.79858907]
[1757283561354,0.19864714,877.76,877.02,3.34069592]
[1757283562157,0.19864714,877.76,877.02,3.33899886]
[1757283576066,0.19864714,877.76,877.03,4.07149395]
[1757283576267,0.19864714,877.76,877.03,3.33899886]
[1757283592492,0.19864714,877.76,877.07,3.33899886]
[1757283592691,0.19864714,877.76,877.09,1.79689201]
[1757283592891,0.19864714,877.76,877.1,0.73325705]
[1757283593088,0.19864714,877.76,877.19,1.79689201]
[1757283599496,0.19864714,877.76,877.19,1.79667784]
[1757283601497,1.5377656,878.91,877.19,1.79667784]
[1757283601792,2.5716525,879.82,876.24,2.5692586]
[1757283601793,0.19850041,877.62,877.26,1.79667784]
[1757283601996,3.6003135,880.23,875.75,3.5969621]
[1757283601997,1.5377656,879.03,877.25,1.79667784]
[1757283602198,0.19849475,878.49,877.25,1.79667784]
[1757283602398,1.5377656,879.03,877.24,1.79667784]
[1757283602896,1.5377656,879.02,877.24,1.79667784]
[1757283603293,1.5377656,879.06,877.26,1.79667784]
[1757283603495,1.5377656,879.06,877.26,1.7962536]
[1757283603798,0.19848569,878.58,877.26,1.7962536]
[1757283604896,0.19848569,878.58,877.27,2.52822889]
[1757283605100,0.19848569,878.58,877.27,1.7962536]
[1757283614005,0.19848569,878.58,877.3,3.33836045]
[1757283614805,0.19848569,878.58,877.31,4.07035024]
[1757283615007,0.19848569,878.58,877.33,3.33836045]
[1757283615203,0.19848569,878.58,877.37,3.33836045]
[1757283623312,0.19848569,878.58,877.36,3.33836045]
[1757283623507,0.19848569,878.58,877.37,4.06949049]
[1757283623708,0.19848569,878.58,877.37,3.33836045]
[1757283628417,0.19848569,878.58,877.35,3.33836045]
[1757283628818,0.19848569,878.58,877.34,3.33836045]
[1757283629215,0.19848569,878.58,877.34,1.7962536]
[1757283629519,0.19848569,878.58,877.3,1.7962536]
[1757283632318,0.19848569,878.58,877.3,3.33836045]
[1757283633522,0.19848569,878.58,877.29,3.33836045]
[1757283633721,0.19848569,878.58,877.26,1.7962536]
[1757283639228,0.19848569,878.58,877.26,3.33836045]
[1757283641630,0.19848569,878.58,877.27,0.73189701]
[1757283641925,0.19848569,878.58,877.27,3.33836045]
[1757283687357,1.73625129,878.58,877.27,3.33836045]
[1757283688353,1.5377656,878.57,877.27,3.33836045]
[1757283690762,1.5377656,878.56,877.27,3.33836045]
[1757283690959,1.5377656,878.55,877.26,3.33836045]
[1757283691960,1.5377656,878.55,877.26,2.56973137]
[1757283692861,1.5377656,878.55,877.26,1.54210685]
[1757283693156,0.19848569,878.58,876.99,2.5692586]
[1757283693362,1.5432739,878.55,877.26,3.33987514]
[1757283697163,1.5432739,878.54,877.26,3.33987514]
[1757283697361,1.5432739,878.55,877.26,3.33987514]
[1757283715370,1.5432739,878.56,877.26,3.33987514]
[1757283715567,1.5432739,878.55,877.26,3.33975394]
[1757283715772,1.5432739,878.56,877.27,4.07171464]
[1757283715969,1.5432739,878.56,877.26,3.33975394]
[1757283720873,0.19848569,878.58,877.26,3.33975394]
[1757283724479,1.5432739,878.6,877.26,3.14123994]
[1757283725280,1.5432739,878.59,877.26,3.14123994]
[1757283726581,1.5432739,878.61,877.26,3.14123994]
[1757283727581,0.19851343,878.28,877.26,3.14123994]
[1757283753801,0.19851343,878.28,877.26,2.3706207]
[1757283754100,0.19851343,878.28,877.26,1.5414808]
[1757283754301,0.19851343,878.28,876.76,2.5692586]
[1757283754502,0.19851343,878.28,876.77,0.72983585]
[1757283754897,0.19851343,878.28,877.26,3.33985421]
[1757283783226,1.5432909,878.66,877.26,3.14134361]
[1757283785928,1.5432909,878.65,877.26,3.14134361]
[1757283786328,0.1985106,878.32,877.26,3.14134361]
[1757283825765,1.5432909,878.63,877.24,2.94282905]
[1757283826264,1.5432909,878.65,877.24,2.94282905]
[1757283826762,1.5432909,878.64,877.24,2.94282905]
[1757283827664,1.5432909,878.59,877.24,2.94282905]
[1757283828665,0.19852136,878.26,877.24,2.94282905]
[1757283831770,1.5432909,878.65,877.24,2.74430429]
[1757283831973,1.5432909,878.63,877.24,2.74430429]
[1757283832470,1.5432909,878.59,877.24,2.74430429]
[1757283832871,1.5432909,878.59,877.18,2.31220681]
[1757283833272,1.5432909,878.6,877.18,2.31220681]
[1757283834370,1.5432909,878.61,877.18,2.31220681]
[1757283834670,0.19852759,878.25,877.18,2.31220681]
[1757283835675,1.5432909,878.55,877.11,0.77073561]
[1757283836375,1.5432909,878.56,877.11,0.77073561]
[1757283836675,1.5432909,878.61,877.11,0.77073561]
[1757283836975,1.5432909,878.59,877.1,0.77073561]
[1757283837172,1.5432909,878.6,877.1,0.77073561]
[1757283838277,1.5432909,878.61,877.1,0.77073561]
[1757283838578,0.19854344,878.23,877.1,0.77073561]
[1757283853288,0.19854344,878.23,876.65,2.5691187]
[1757283853493,0.19854344,878.23,877.1,0.76933427]
[1757283855694,0.19854344,878.23,877.1,2.30789837]
[1757283861701,0.19854344,878.23,877.1,3.33349637]
[1757283882220,0.19854344,878.23,877.09,3.33349637]
[1757283882426,1.0269677,878.24,877.01,2.30789837]
[1757283883025,1.0269677,878.23,877.01,2.30789837]
[1757283883326,1.0269677,878.26,876.97,2.30789837]
[1757283885526,0.19858366,877.94,876.97,2.30789837]
[1757283890928,0.19858366,877.94,876.94,2.30789837]
[1757283895029,0.19858366,877.94,876.91,2.30789837]
[1757283896426,0.19858366,877.94,876.91,0.76933427]
[1757283897834,0.19858366,877.94,876.9,0.76933427]
[1757283898034,0.19858366,877.94,876.86,0.76933427]
[1757283906438,0.19858366,877.94,876.86,2.30789837]
[1757283912447,0.19858366,877.94,876.86,3.33381642]
[1757283925351,0.19858366,877.94,876.87,3.33381642]
[1757283927752,0.19858366,877.94,876.92,0.76933427]
[1757283927952,0.19858366,877.94,876.99,1.79525232]
[1757283928552,0.19858366,877.94,877.0,1.79525232]
[1757283928958,0.19858366,877.94,877.04,1.79525232]
[1757283929254,0.19858366,877.94,877.05,1.79525232]
[1757283929649,0.19858366,877.94,877.05,3.33381642]
[1757283933754,0.19858366,877.94,877.05,3.33395927]
[1757283938458,0.19858366,877.94,877.1,3.33395927]
[1757283941360,0.19858366,877.94,877.1,2.56448215]
[1757283941563,0.19858366,877.94,877.1,3.33392138]
[1757283949870,0.19858366,877.94,877.11,3.33392138]
[1757283959576,0.19858366,877.94,877.12,1.79535728]
[1757283969491,0.19858366,877.94,877.12,3.33392138]
[1757284019920,0.19858366,877.94,877.13,4.07230901]
[1757284020121,0.19858366,877.94,877.15,3.33392138]
[1757284033528,0.19858366,877.94,877.16,4.07293774]
[1757284033732,0.19858366,877.94,877.16,3.33392138]
[1757284046636,0.19858366,877.94,877.32,1.79535728]
[1757284047236,0.19858366,877.94,877.33,0.73813688]
[1757284047538,0.19858366,877.94,877.4,1.79535728]
[1757284056444,0.19858366,877.94,877.4,3.33392138]
[1757284057742,0.19858366,877.94,877.39,3.33392138]
[1757284058540,0.19858366,877.94,877.38,3.33392138]
[1757284060046,0.19858366,877.94,877.39,4.07000509]
[1757284060347,0.19858366,877.94,877.39,3.33392138]
[1757284064348,0.19858366,877.94,877.4,4.06972616]
[1757284064545,0.19858366,877.94,877.4,3.33392138]
[1757284071052,0.19858366,877.94,877.41,3.3000967]
[1757284071249,0.19858366,877.94,877.41,3.33392138]
[1757284077657,0.19858366,877.94,877.4,3.33392138]
[1757284085266,1.5432909,878.91,877.4,3.33392138]
[1757284085567,0.19847154,877.81,877.4,3.33392138]
[1757284085767,1.5432909,878.91,877.4,3.33392138]
[1757284085971,0.19847154,877.71,877.4,3.33392138]
[1757284086364,1.5432909,878.9,877.4,3.33392138]
[1757284086565,1.5432909,878.87,877.4,3.33392138]
[1757284087467,0.1984738,878.51,877.4,3.33392138]
[1757284104479,0.1984738,878.51,877.41,3.04573216]
[1757284104679,0.1984738,878.51,877.41,3.33392138]
[1757284104885,0.1984738,878.51,877.4,3.33392138]
[1757284105184,0.1984738,878.51,877.41,4.07166133]
[1757284105481,0.1984738,878.51,877.41,3.33392138]
[1757284115796,0.1984738,878.51,877.41,2.56448215]
[1757284115996,0.1984738,878.51,877.41,3.33505641]
[1757284131008,0.1984738,878.51,877.41,3.33507705]
[1757284157829,0.1984738,878.51,877.41,3.33507705]
[1757284187057,0.1984738,878.51,877.39,1.79651295]
[1757284187262,0.1984738,878.51,877.32,1.79651295]
[1757284187461,0.1984738,878.51,877.33,2.53776118]
[1757284187758,0.1984738,878.51,877.33,1.79651295]
[1757284195766,0.1984738,878.51,877.32,1.79651295]
[1757284197070,0.1984738,878.51,877.32,3.33507705]
[1757284200575,0.1984738,878.51,877.31,3.33507705]
[1757284202176,0.1984738,878.51,877.31,2.56448215]
[1757284202475,0.1984738,878.51,877.31,3.33473774]
[1757284217580,0.1984738,878.51,876.76,2.5691187]
[1757284217581,0.1984738,878.51,877.32,3.33473774]
[1757284217784,0.1984738,878.51,876.76,2.5691187]
[1757284217785,0.1984738,878.51,877.31,3.33473774]
[1757284218882,0.1984738,878.51,877.32,4.07214823]
[1757284219086,0.1984738,878.51,877.32,3.33473774]
[1757284219886,0.1984738,878.51,877.33,4.07212086]
[1757284220084,0.1984738,878.51,877.34,0.73728505]
[1757284220383,0.1984738,878.51,877.39,3.33473774]
[1757284221785,0.1984738,878.51,877.4,4.07197645]
[1757284221987,0.1984738,878.51,877.4,3.33473774]
[1757284222788,0.1984738,878.51,877.43,3.33473774]
[1757284224189,0.1984738,878.51,877.44,4.07186425]
[1757284224488,0.1984738,878.51,877.44,3.33473774]
[1757284226285,0.1984738,878.51,877.46,3.33473774]
[1757284226989,0.1984738,878.51,877.47,4.07173162]
[1757284227190,0.1984738,878.51,877.47,3.33473774]
[1757284227485,0.1984738,878.51,877.03,2.5691187]
[1757284227486,0.1984738,878.51,877.54,1.79617364]
[1757284227689,0.1984738,878.51,877.55,2.53290862]
[1757284227888,0.1984738,878.51,877.55,1.79617364]
[1757284234893,0.1984738,878.51,877.56,1.79617364]
[1757284235089,0.1984738,878.51,877.54,1.79617364]
[1757284241894,0.1984738,878.51,877.52,1.79617364]
[1757284242100,0.1984738,878.51,877.48,1.79617364]
[1757284243395,0.1984738,878.51,877.49,2.53542705]
[1757284243598,0.1984738,878.51,877.49,1.79617364]
[1757284244698,0.1984738,878.51,877.48,1.79617364]
[1757284248701,0.1984738,878.51,877.49,0.73920744]
[1757284249001,0.1984738,878.51,877.49,1.79617364]
[1757284251705,0.1984738,878.51,877.47,3.33473774]
[1757284260913,1.5432909,879.08,877.47,3.13628431]
[1757284261109,1.5432909,879.09,877.47,3.13628431]
[1757284261911,1.5432909,879.04,877.47,3.13628431]
[1757284262213,1.5432909,879.03,877.47,3.13628431]
[1757284262610,1.5432909,879.04,877.47,3.13628431]
[1757284263114,1.5432909,879.03,877.47,3.13628431]
[1757284263810,0.19845626,878.65,877.47,3.13628431]
[1757284275219,0.19845626,878.65,877.47,3.13515691]
[1757284283522,0.19845626,878.65,877.48,0.73866278]
[1757284283723,0.19845626,878.65,877.48,3.13515691]
[1757284283926,0.19845626,878.65,877.47,3.13515691]
[1757284290332,1.5432909,879.14,877.37,1.79504624]
[1757284290532,1.5432909,879.07,877.28,1.79504624]
[1757284290831,1.5432909,879.06,877.27,1.79504624]
[1757284291231,1.5432909,879.07,877.27,1.79504624]
[1757284292330,1.5432909,879.08,877.27,1.79504624]
[1757284292831,1.5432909,878.94,877.27,1.79504624]
[1757284293031,2.5721516,880.13,875.57,3.5969621]
[1757284293032,1.5432909,878.9,877.23,1.79504624]
[1757284293429,0.19849531,878.53,877.23,1.79504624]
[1757284296335,0.19849531,878.53,877.22,1.79504624]
[1757284296535,0.19849531,878.53,877.19,1.79504624]
[1757284297336,0.19849531,878.53,877.16,1.79504624]
[1757284297636,0.19849531,878.53,877.15,1.79504624]
[1757284297839,0.19849531,878.53,877.14,1.79504624]
[1757284299633,2.5721516,879.44,876.48,2.5691187]
[1757284299634,1.5432909,878.9,877.13,1.59650166]
[1757284299837,1.5432909,878.8,877.03,1.02591805]
[1757284300033,1.5432909,878.79,877.03,1.02591805]
[1757284300233,1.5432909,878.81,877.03,1.02591805]
[1757284301339,1.5432909,878.84,877.03,1.02591805]
[1757284301536,1.5432909,878.79,876.98,1.02591805]
[1757284302341,1.5432909,878.81,876.98,1.02591805]
[1757284302837,0.19854741,878.36,876.98,1.02591805]
[1757284311144,0.19854741,878.36,876.98,2.55962436]
[1757284315748,0.19854741,878.36,876.98,1.02591805]
[1757284327559,0.19854741,878.36,876.98,2.55962436]
[1757284339264,0.19854741,878.36,876.98,1.02591805]
[1757284347469,0.19854741,878.36,876.98,2.55962436]
[1757284354277,1.5432909,878.35,876.98,2.55962436]
[1757284355377,1.5432909,878.34,876.98,2.55962436]
[1757284356383,1.5432909,878.33,876.98,2.55962436]
[1757284357280,1.5432909,878.31,876.98,2.55962436]
[1757284358285,1.5432909,878.3,876.98,2.55962436]
[1757284359488,1.5432909,878.28,876.98,2.55962436]
[1757284359789,1.5432909,878.28,876.98,3.33137311]
[1757284361290,1.5432909,878.27,876.98,3.33137311]
[1757284372393,1.5432909,878.32,876.98,3.33137311]
[1757284372993,1.5432909,878.33,876.98,3.33137311]
[1757284373498,0.19854741,878.36,876.98,3.33137311]
[1757284375294,0.19854741,878.36,876.99,4.06672817]
[1757284375495,0.19854741,878.36,876.99,3.33137311]
[1757284376798,0.19854741,878.36,877.0,0.73518199]
[1757284376998,0.19854741,878.36,877.06,3.33137311]
[1757284377298,0.19854741,878.36,877.08,3.33137311]
[1757284377498,0.19854741,878.36,877.15,3.33137311]
[1757284377699,0.19854741,878.36,877.16,4.0665445]
[1757284377995,0.19854741,878.36,877.16,3.33137311]
[1757284395818,0.19854741,878.36,877.15,3.33137311]
[1757284396022,0.19854741,878.36,877.14,3.33137311]
[1757284397121,0.19854741,878.36,877.13,3.33137311]
[1757284406826,0.19854741,878.36,877.07,3.33137311]
[1757284407321,0.19854741,878.36,877.06,3.33137311]
[1757284407525,0.19854741,878.36,877.03,3.33137311]
[1757284428542,0.19854741,878.36,877.04,4.0628431]
[1757284428737,0.19854741,878.36,877.04,3.33137311]
[1757284429241,0.19854741,878.36,877.05,4.06282202]
[1757284429438,0.19854741,878.36,877.05,3.33137311]
[1757284431640,0.19854741,878.36,877.11,3.33137311]
[1757284444157,0.19854741,878.36,877.1,3.33137311]
[1757284444456,0.19854741,878.36,877.11,4.0631977]
[1757284444756,0.19854741,878.36,877.11,3.33137311]
[1757284454469,0.19854741,878.36,877.1,3.33137311]
[1757284481682,0.19854741,878.36,877.11,4.06368197]
[1757284481980,0.19854741,878.36,877.12,4.06367587]
[1757284482177,0.19854741,878.36,877.12,3.33137311]
[1757284491382,0.19854741,878.36,877.21,1.7976668]
[1757284501196,0.19854741,878.36,877.21,3.33137311]
[1757284502697,1.5432909,878.69,877.21,3.33137311]
[1757284502891,0.198514,878.08,877.21,3.33137311]
[1757284503191,1.5432909,878.69,877.21,3.33137311]
[1757284503396,0.198514,877.87,877.21,3.33137311]
[1757284503597,1.5432909,878.69,877.21,3.33137311]
[1757284504898,0.198514,878.33,877.21,3.33137311]
[1757284509396,1.5432909,878.76,877.2,3.13285232]
[1757284509600,1.5432909,878.71,877.15,2.55962436]
[1757284510393,1.5432909,878.7,877.15,2.55962436]
[1757284510896,1.5432909,878.73,877.15,2.55962436]
[1757284511398,1.5432909,878.71,877.15,2.55962436]
[1757284512399,0.19852759,878.33,877.15,2.55962436]
[1757284567239,0.19852759,878.33,877.16,3.29198338]
[1757284567444,0.19852759,878.33,877.16,2.55962436]
[1757284569441,0.19852759,878.33,877.16,3.33135486]
[1757284605773,0.19852759,878.33,877.15,3.33135486]
[1757284606371,0.19852759,878.33,877.11,3.33135486]
[1757284623183,0.19852759,878.33,877.1,3.33135486]
[1757284623385,0.19852759,878.33,877.07,3.33135486]
[1757284625484,0.19852759,878.33,877.07,1.53370631]
[1757284625684,0.19852759,878.33,877.04,3.33135486]
[1757284634786,0.19852759,878.33,877.0,3.33135486]
[1757284634990,0.19852759,878.33,876.92,3.33135486]
[1757284635192,0.19852759,878.33,876.91,3.33135486]
[1757284636787,0.19852759,878.33,876.9,3.33135486]
[1757284637088,0.19852759,878.33,876.91,4.06112588]
[1757284637291,0.19852759,878.33,876.83,3.33135486]
[1757284647001,1.5432909,878.3,876.83,3.33135486]
[1757284647298,0.19852759,878.33,876.83,3.33135486]
[1757284647299,1.5432909,878.31,876.83,3.33135486]
[1757284647703,0.19852759,878.33,876.82,3.33135486]
[1757284648701,1.5432909,878.37,876.82,3.33135486]
[1757284651305,1.5432909,878.38,876.82,3.33135486]
[1757284654404,0.19860236,878.0,876.82,3.33135486]
[1757284670015,0.19860236,878.0,876.39,2.5691187]
[1757284670016,0.19860236,878.0,876.83,4.05863998]
[1757284670213,0.19860236,878.0,876.82,3.33135486]
[1757284686223,0.19860236,878.0,876.83,0.728472]
[1757284686421,0.19860236,878.0,877.35,1.79764855]
[1757284687226,0.19860236,878.0,877.06,1.53370631]
[1757284687227,0.19860236,878.0,877.36,1.49967901]
[1757284687430,0.19860236,878.0,877.36,0.7717305]
[1757284688326,0.19860236,878.0,877.43,0.7717305]
[1757284690728,0.19860236,878.0,877.42,0.7717305]
[1757284690931,0.19860236,878.0,877.41,0.7717305]
[1757284700539,0.19860236,878.0,877.41,1.79764855]
[1757284703138,0.19860236,878.0,877.62,0.7717305]
[1757284705243,0.19860236,878.0,877.59,0.7717305]
[1757284706145,0.19860236,878.0,877.58,0.7717305]
[1757284706344,0.19860236,878.0,877.57,0.7717305]
[1757284706545,0.19860236,878.0,877.51,1.79764855]
[1757284707042,0.19860236,878.0,877.47,3.33135486]
[1757284711443,0.19860236,878.0,877.47,1.79764855]
[1757284714849,0.19860236,878.0,877.46,3.33135486]
[1757284723354,0.19860236,878.0,877.46,1.79764855]
[1757284732463,0.19860236,878.0,877.46,3.33135486]
[1757284734069,0.19860236,878.0,877.72,0.7717305]
[1757284734269,0.19860236,878.0,877.75,0.7717305]
[1757284735769,0.19860236,878.0,877.11,1.53370631]
[1757284735770,0.19860236,878.0,877.76,1.49297851]
[1757284735967,0.19860236,878.0,877.79,1.79764855]
[1757284737668,0.19860236,878.0,877.8,2.51903423]
[1757284737868,0.19860236,878.0,877.8,1.79764855]
[1757284750284,0.19860236,878.0,877.8,3.33135486]
[1757284769408,0.19860236,878.0,877.8,3.32557828]
[1757284776111,0.19860236,878.0,877.79,3.32557828]
[1757284782915,0.19860236,878.0,877.8,2.25855057]
[1757284783115,0.19860236,878.0,877.8,3.32557828]
[1757284793626,1.5432909,879.1,877.76,1.79187197]
[1757284793829,1.5432909,879.4,877.62,1.79187197]
[1757284794229,1.5432909,879.42,877.62,1.79187197]
[1757284794431,1.5432909,879.41,877.62,1.79187197]
[1757284794832,1.5432909,879.42,877.62,1.79187197]
[1757284795034,1.5432909,879.38,877.62,1.79187197]
[1757284795232,1.5432909,879.39,877.62,1.79187197]
[1757284796235,1.5432909,879.4,877.62,1.79187197]
[1757284796435,1.5432909,879.37,877.62,1.79187197]
[1757284796640,0.19840195,878.96,877.62,1.79187197]
[1757284813955,0.19840195,878.96,877.62,3.32883342]
[1757284834170,0.19840195,878.96,877.64,1.79187197]
[1757284843975,0.19840195,878.96,877.64,3.32883342]
[1757284858202,0.19840195,878.96,877.64,1.79187197]
[1757284858599,0.19840195,878.96,877.64,3.32883342]
[1757284863303,0.19840195,878.96,877.64,1.79187197]
[1757284873010,0.19840195,878.96,877.65,0.72576245]
[1757284873212,0.19840195,878.96,877.65,1.79187197]
[1757284873412,0.19840195,878.96,877.64,1.79187197]
[1757284888020,0.19840195,878.96,877.71,1.79187197]
[1757284897733,0.19840195,878.96,877.71,3.32883342]
[1757284942371,0.19840195,878.96,877.72,4.05381028]
[1757284942566,0.19840195,878.96,877.72,3.32883342]
[1757284944067,0.19840195,878.96,877.74,1.79187197]
[1757284944568,0.19840195,878.96,877.9,3.32883342]
[1757284944767,0.19840195,878.96,877.92,3.32883342]
[1757284945165,0.19840195,878.96,878.01,1.79187197]
[1757284946769,0.19840195,878.96,878.0,1.79187197]
[1757284948272,0.19840195,878.96,878.02,1.79187197]
[1757284958481,0.19840195,878.96,878.02,3.32883342]
[1757284962784,0.19840195,878.96,877.87,0.76595392]
[1757284974786,0.19840195,878.96,877.76,1.02591805]
[1757284974986,0.19840195,878.96,877.87,0.76551284]
[1757284978486,0.19840195,878.96,877.87,1.79143089]
[1757284980788,0.19840195,878.96,877.88,2.51419105]
[1757284980988,0.19840195,878.96,877.94,1.79137996]
[1757284981185,0.19840195,878.96,877.95,0.72261821]
[1757284981388,0.19840195,878.96,877.95,1.79137996]
[1757284981986,0.19840195,878.96,877.94,1.79137996]
[1757284987292,0.19840195,878.96,877.95,1.79137996]
[1757284996901,0.19832393,878.71,877.95,1.79137996]
[1757284997800,0.19832393,878.71,877.95,3.32834141]
[1757285002004,0.19832393,878.71,877.95,1.79137996]
[1757285002204,0.19832393,878.71,877.95,3.32834141]
[1757285011418,0.19832393,878.71,877.96,2.51695687]
[1757285011721,0.19832393,878.71,877.96,1.79137996]
[1757285013122,0.19832393,878.71,877.95,1.79137996]
[1757285021325,0.19832393,878.71,877.95,3.32834141]
[1757285025426,0.19832393,878.71,877.95,1.79137996]
[1757285031828,0.19832393,878.71,877.92,1.79137996]
[1757285033235,0.19832393,878.71,877.86,1.79137996]
[1757285035531,0.19832393,878.71,877.83,3.32834141]
[1757285063064,0.19832393,878.71,877.83,1.79137996]
[1757285067168,0.19832393,878.71,877.83,3.32834141]
[1757285096989,0.19832393,878.71,877.83,1.79137996]
[1757285097191,0.19832393,878.71,878.12,0.76546191]
[1757285097388,0.19832393,878.71,878.13,1.49129271]
[1757285097593,0.19832393,878.71,878.13,0.76546191]
[1757285097889,0.19832393,878.71,878.13,1.79137996]
[1757285098291,0.19832393,878.71,878.13,0.76546191]
[1757285098489,0.19832393,878.71,878.18,1.79137996]
[1757285100894,0.19832393,878.71,878.19,2.51594108]
[1757285101197,0.19832393,878.71,878.19,1.79137996]
[1757285103389,0.19832393,878.71,878.19,1.02591805]
[1757285103593,0.19832393,878.71,878.19,1.79086827]
[1757285104593,0.19832393,878.71,876.9,2.5691187]
[1757285104594,0.19832393,878.71,878.18,1.79086827]
[1757285105890,0.19832393,878.71,878.18,0.76495022]
[1757285106091,0.19832393,878.71,878.26,0.76495022]
[1757285108698,0.19832393,878.71,878.26,1.79086827]
[1757285109397,0.19832393,878.71,878.14,0.76495022]
[1757285109602,0.19832393,878.71,878.15,1.49623015]
[1757285109798,0.19832393,878.71,878.15,0.76495022]
[1757285113606,0.19832393,878.71,878.15,1.79086827]
[1757285114307,0.19832393,878.71,878.17,1.79086827]
[1757285114608,0.19832393,878.71,878.2,1.79086827]
[1757285118510,0.19832393,878.71,878.3,1.79086827]
[1757285125820,0.19832393,878.71,878.31,0.73003944]
[1757285126121,0.19832393,878.71,878.3,1.79086827]
[1757285135326,0.19832393,878.71,878.3,3.32782972]
[1757285138632,0.19832393,878.71,878.31,0.72966556]
[1757285138931,0.19832393,878.71,878.48,1.79086827]
[1757285139331,0.19832393,878.71,878.49,2.52208755]
[1757285139626,0.19832393,878.71,878.49,1.79086827]
[1757285141929,0.19832393,878.71,878.49,1.02591805]
[1757285142128,0.19832393,878.71,878.48,1.78798099]
[1757285142333,0.19832393,878.71,878.49,2.51922184]
[1757285142533,0.19832393,878.71,878.49,1.78798099]
[1757285153245,0.19832393,878.71,878.49,3.32494244]
[1757285153843,0.19832393,878.71,878.49,1.78798099]
[1757285155142,0.19832393,878.71,878.49,3.32494244]
[1757285156143,0.19832393,878.71,878.48,3.32494244]
[1757285156341,0.19832393,878.71,878.47,3.32494244]
[1757285156541,0.19832393,878.71,877.81,2.5691187]
[1757285156542,0.19832393,878.71,878.48,4.05870676]
[1757285156843,0.19832393,878.71,878.47,3.32494244]
[1757285157941,0.19832393,878.71,878.46,3.32494244]
[1757285165850,0.19832393,878.71,878.47,0.73387408]
[1757285166051,0.19832393,878.71,878.47,3.32494244]
[1757285170452,0.19832393,878.71,878.48,0.73502141]
[1757285170655,0.19832393,878.71,878.48,3.32494244]
[1757285175456,0.19832393,878.71,878.48,1.78798099]
[1757285178961,0.19832393,878.71,878.48,3.32494244]
[1757285181360,0.19832393,878.71,878.4,1.78798099]
[1757285181561,0.19832393,878.71,878.41,2.52399769]